bitfinex/quotes_ETHUSD_20241129
["timestamp","ask_amount","ask_price","bid_price","bid_amount"]
[1732881212844,0.11092877,3598.2,3597.7,2.86191449]
[1732881213044,0.11092877,3598.2,3597.8,2.77946]
[1732881213251,3.11092877,3598.3,3597.8,2.77946]
[1732881213459,0.11092877,3598.2,3597.9,0.08220556]
[1732881213642,0.11092877,3598.2,3597.9,2.86159556]
[1732881213843,0.11092877,3598.5,3597.9,0.72511712]
[1732881214046,3.11092877,3598.7,3598.1,2.77921]
[1732881214243,0.11092877,3598.6,3598.1,2.77921]
[1732881214460,2.80668595,3598.5,3598.2,0.08199891]
[1732881214774,0.11092877,3598.4,3598.2,0.08199891]
[1732881214928,0.11092877,3598.4,3598.0,0.8157]
[1732881215245,0.02774595,3598.5,3598.3,0.08193876]
[1732881215438,0.61949342,3598.5,3597.8,2.77942]
[1732881215668,2.77902,3598.4,3597.8,2.77942]
[1732881215876,2.77918,3598.2,3597.7,0.8269]
[1732881216046,2.80699595,3598.1,3597.7,0.8269]
[1732881216250,2.80699595,3598.1,3597.4,3.53215]
[1732881216475,2.77925,3598.1,3597.4,3.53215]
[1732881216672,0.11090844,3598.0,3597.4,3.53215]
[1732881216839,2.77925,3598.1,3597.4,3.53215]
[1732881217175,2.77945,3597.9,3597.2,2.77992]
[1732881217381,0.13865449,3597.8,3597.2,2.77992]
[1732881217584,2.91813449,3597.8,3597.2,2.77992]
[1732881217730,0.11092538,3597.7,3597.2,2.77992]
[1732881217937,0.11092543,3597.7,3597.2,2.77992]
[1732881218138,2.80722595,3597.8,3597.2,2.77992]
[1732881218339,0.1109331,3597.7,3597.2,2.77992]
[1732881218841,0.02774595,3597.8,3597.3,2.77985]
[1732881219038,0.13868613,3597.9,3597.3,2.77985]
[1732881219249,0.11094018,3597.9,3597.4,2.77974]
[1732881219451,2.89037018,3597.9,3597.3,2.77984]
[1732881219752,2.77943,3597.9,3597.3,2.77984]
[1732881220339,2.80722595,3597.8,3597.2,2.77988]
[1732881220541,2.77956,3597.7,3597.1,0.7767]
[1732881220785,2.77925,3598.1,3597.3,2.77986]
[1732881220987,0.11095819,3598.0,3597.4,2.77978]
[1732881221280,2.89027819,3598.0,3597.4,2.77978]
[1732881221489,0.11095819,3597.9,3597.4,2.77978]
[1732881222157,0.11095819,3597.9,3597.1,0.7767]
[1732881222158,2.77955,3597.7,3597.1,0.7767]
[1732881222343,0.02774595,3597.6,3597.1,3.55669]
[1732881222553,0.02774595,3597.6,3597.2,2.77993]
[1732881222752,2.8904558,3597.8,3597.2,2.77993]
[1732881223086,2.8904558,3597.8,3597.1,0.7767]
[1732881223087,0.1109758,3597.7,3597.1,0.7767]
[1732881223290,0.1109758,3597.7,3597.1,3.55671]
[1732881223291,2.8905358,3597.7,3597.1,3.55671]
[1732881223447,2.7797,3597.5,3597.1,0.7767]
[1732881223649,0.02774595,3597.4,3597.1,0.7767]
[1732881223847,2.89063235,3597.6,3597.1,0.7767]
[1732881224067,3.33820278,3597.8,3597.1,0.7767]
[1732881224277,0.11098373,3597.7,3597.3,2.7798]
[1732881224495,3.7549,3598.2,3597.5,2.77964]
[1732881224654,0.11098824,3598.1,3597.6,2.77963]
[1732881224993,0.11098824,3598.1,3597.8,2.77945]
[1732881225199,0.11098824,3598.3,3597.8,2.77945]
[1732881225413,0.11098824,3598.3,3597.9,0.08211452]
[1732881226291,0.11098824,3598.3,3598.0,2.77931]
[1732881226455,0.11098824,3598.5,3598.1,0.7864]
[1732881226780,0.11098824,3598.5,3598.1,0.86833769]
[1732881227292,0.11098824,3598.5,3598.1,3.64756769]
[1732881227591,3.11098824,3598.7,3598.2,2.77915]
[1732881227796,2.77893,3598.5,3598.2,0.08187754]
[1732881227998,0.13873419,3598.4,3598.2,0.08187754]
[1732881228171,0.02774595,3598.4,3598.2,0.08187754]
[1732881228687,0.13873419,3598.4,3598.2,0.08187754]
[1732881228868,0.11098824,3598.4,3598.2,0.08187754]
[1732881229060,2.88984824,3598.6,3598.2,0.08187754]
[1732881229256,0.11098824,3598.5,3598.2,0.08187754]
[1732881229453,0.11095089,3598.6,3598.2,0.08187754]
[1732881229658,2.88985089,3598.6,3598.2,0.08187754]
[1732881229897,0.11095089,3598.5,3598.2,0.08187754]
[1732881230055,2.88943089,3599.1,3598.5,2.77892]
[1732881230263,0.75617598,3599.0,3598.4,2.77894]
[1732881230585,2.88942089,3599.1,3598.5,2.86055785]
[1732881230788,0.11095089,3599.0,3598.5,2.86055785]
[1732881233035,2.88950089,3599.0,3598.5,0.08163785]
[1732881233333,2.91737684,3598.9,3598.5,0.08163785]
[1732881233822,2.91737684,3598.9,3598.6,0.0814261]
[1732881233984,0.11095089,3598.8,3598.3,2.77907]
[1732881234188,0.11095089,3598.8,3598.7,0.08136597]
[1732881234384,3.45923757,3598.8,3598.1,3.56562]
[1732881234685,0.89429684,3598.7,3597.7,2.77952]
[1732881234888,2.77894,3598.5,3597.9,2.77938]
[1732881235089,0.02774595,3598.4,3597.9,2.77938]
[1732881235633,2.77912,3598.3,3597.6,2.77961]
[1732881235924,0.02774595,3598.2,3597.6,2.77961]
[1732881236126,2.80691595,3598.2,3597.6,2.77961]
[1732881236431,2.77931,3598.1,3597.5,0.7552]
[1732881236635,0.02774595,3598.0,3597.5,0.7552]
[1732881236839,0.02774595,3598.0,3597.5,3.53489]
[1732881237493,0.02774595,3598.0,3597.5,0.7552]
[1732881237941,0.11093578,3598.4,3597.5,0.7552]
[1732881238333,0.11096569,3598.3,3597.5,0.7552]
[1732881239295,0.02774595,3598.2,3597.5,0.7552]
[1732881239495,0.02774595,3598.2,3597.6,0.08208135]
[1732881239695,0.11096569,3598.3,3597.6,0.08208135]
[1732881239917,0.02774595,3598.2,3597.6,0.08208135]
[1732881240931,0.02774595,3598.3,3597.6,0.08208135]
[1732881241126,0.02774595,3598.3,3597.3,0.792]
[1732881241295,0.55,3598.1,3596.8,0.7991]
[1732881241494,0.55,3598.1,3597.4,0.08220032]
[1732881241733,0.55,3598.1,3596.9,0.38349677]
[1732881241907,0.55,3598.1,3597.0,0.02779774]
[1732881242256,0.55,3598.1,3597.0,0.11023878]
[1732881242529,0.55,3598.1,3597.1,0.7777]
[1732881242824,0.55,3598.1,3597.2,0.08232067]
[1732881243596,0.8041,3598.2,3597.2,0.08232067]
[1732881244716,0.11102046,3598.1,3597.2,0.08232067]
[1732881245045,0.11102046,3598.1,3597.2,0.47173854]
[1732881245748,0.11102046,3598.7,3597.4,0.8259]
[1732881245902,0.11102046,3598.6,3597.8,0.8259]
[1732881246251,0.8136,3598.9,3597.8,0.8259]
[1732881246252,0.11102046,3598.8,3597.8,0.8259]
[1732881246543,0.8136,3598.9,3597.9,0.46798524]
[1732881246755,0.7546,3599.1,3598.0,0.7852]
[1732881246962,0.11102046,3599.0,3598.6,0.7852]
[1732881247120,0.7546,3599.9,3598.6,0.81298299]
[1732881247318,0.7546,3599.9,3598.8,0.8014]
[1732881247742,0.7546,3599.9,3598.9,0.08131326]
[1732881248258,0.02774595,3599.8,3598.9,0.08131326]
[1732881252226,0.02774595,3599.8,3598.8,0.8014]
[1732881252439,0.02774595,3599.8,3599.0,0.08108507]
[1732881252630,0.02774595,3599.8,3598.8,0.8014]
[1732881252834,0.02774595,3599.8,3599.1,0.08103597]
[1732881253022,0.02774595,3599.8,3598.8,0.8014]
[1732881253224,0.7546,3599.9,3599.2,0.08097586]
[1732881253427,0.7546,3599.9,3598.8,0.8014]
[1732881253648,0.7546,3599.9,3599.3,0.08091575]
[1732881253964,0.7546,3599.9,3598.8,0.8014]
[1732881254330,0.7546,3599.9,3598.9,0.08115621]
[1732881254530,0.7546,3599.9,3599.0,0.02778406]
[1732881254767,0.55,3600.1,3599.1,0.7618]
[1732881254931,0.14869205,3600.0,3599.1,0.84283597]
[1732881256135,0.02774595,3599.9,3599.1,0.84283597]
[1732881257056,0.14869205,3600.0,3599.1,0.84283597]
[1732881257579,0.8259,3600.2,3599.2,0.02778302]
[1732881257743,0.7746,3600.5,3599.3,0.7516]
[1732881258274,0.7746,3600.5,3599.4,0.08062694]
[1732881259560,0.02774595,3600.4,3599.4,0.08062694]
[1732881259872,0.02774595,3600.4,3599.3,0.7516]
[1732881260168,0.57774595,3600.4,3599.3,0.7516]
[1732881260355,0.4386504,3600.3,3599.4,0.08062694]
[1732881260532,0.02774595,3600.2,3599.4,0.08062694]
[1732881260738,0.4386504,3600.3,3599.3,0.7516]
[1732881260974,0.02774595,3600.2,3599.3,0.7516]
[1732881261134,0.7792,3600.1,3599.4,0.08062694]
[1732881261335,0.96986168,3600.1,3599.4,0.08062694]
[1732881261538,0.02774595,3600.0,3599.1,0.8141]
[1732881261791,0.7792,3600.1,3599.1,0.8141]
[1732881261972,0.02774595,3600.0,3599.2,0.08074716]
[1732881262654,0.7792,3600.1,3599.2,0.08074716]
[1732881262989,0.7792,3600.1,3599.1,0.8141]
[1732881263346,0.7792,3600.1,3599.2,0.08074716]
[1732881263874,0.7792,3600.1,3599.1,0.8141]
[1732881264181,0.7792,3600.1,3599.2,0.08074716]
[1732881264539,0.4386504,3600.3,3599.2,0.08074716]
[1732881264949,0.02774595,3600.2,3599.1,0.8141]
[1732881265157,0.8182,3600.4,3599.1,0.8141]
[1732881265517,1.34974595,3600.7,3599.2,0.90054716]
[1732881266256,1.4604749,3600.7,3599.2,0.90054716]
[1732881266451,1.34974595,3600.7,3599.2,0.90054716]
[1732881266789,0.55,3600.5,3599.2,0.90054716]
[1732881266947,0.66072895,3600.6,3599.2,0.90054716]
[1732881267281,0.55,3600.6,3599.2,0.9283282]
[1732881267438,0.55,3600.6,3599.2,0.90054716]
[1732881267787,0.02774595,3600.5,3599.2,0.90054716]
[1732881268079,0.02774595,3600.5,3599.2,1.29401768]
[1732881269618,0.55,3600.3,3599.2,0.90054716]
[1732881269772,0.02774595,3600.2,3599.2,0.90054716]
[1732881269973,0.55,3600.3,3599.2,0.90054716]
[1732881270207,0.55,3600.3,3599.2,0.8198]
[1732881271275,0.02774595,3600.3,3599.2,0.8198]
[1732881271470,0.57774595,3600.6,3599.2,0.8198]
[1732881272377,1.01576055,3600.6,3599.2,0.8198]
[1732881276113,0.9880146,3600.6,3599.2,0.8198]
[1732881277191,0.02774595,3600.5,3599.2,0.8198]
[1732881277397,0.9880146,3600.6,3599.3,3.03415801]
[1732881277628,0.9880146,3600.6,3599.4,0.88418741]
[1732881277629,0.55,3600.6,3599.4,0.88418741]
[1732881277800,0.02774595,3600.5,3599.4,0.88418741]
[1732881278807,0.55,3600.6,3599.4,0.88418741]
[1732881279740,0.57774595,3601.2,3599.4,0.88418741]
[1732881280099,0.02774595,3601.2,3599.4,0.88418741]
[1732881280337,0.02774595,3601.2,3599.6,0.8012]
[1732881280720,0.02774595,3601.2,3599.7,0.87900437]
[1732881281537,0.77924595,3601.4,3599.8,0.8191]
[1732881281958,0.77924595,3601.4,3600.0,0.8019]
[1732881282449,0.02774595,3601.4,3600.2,0.8019]
[1732881282753,0.55,3601.3,3600.3,0.87934384]
[1732881283125,0.02774595,3602.0,3600.5,0.787]
[1732881283528,0.02774595,3602.0,3600.6,0.07720611]
[1732881283834,0.8328,3601.9,3600.5,0.787]
[1732881284039,0.02774595,3601.8,3600.5,0.787]
[1732881284380,0.57774595,3601.8,3600.5,0.787]
[1732881284519,0.55,3601.6,3600.5,0.787]
[1732881285449,0.57774595,3601.8,3600.5,0.787]
[1732881285656,0.57774595,3602.0,3600.5,0.787]
[1732881286058,0.57774595,3602.0,3600.7,0.8186]
[1732881286427,0.57774595,3602.0,3600.8,0.07700521]
[1732881286662,0.7410604,3601.9,3600.9,0.8186]
[1732881286860,0.02774595,3601.8,3600.9,0.8186]
[1732881287044,0.7736,3602.3,3600.9,0.8186]
[1732881287250,0.02774595,3602.2,3600.9,0.8186]
[1732881288121,0.57774595,3602.2,3600.9,0.8186]
[1732881289658,0.02774595,3602.2,3601.0,0.0768851]
[1732881289838,0.57774595,3602.3,3601.1,0.8303]
[1732881290032,0.57774595,3602.3,3601.1,0.90712504]
[1732881291347,3.61190396,3602.3,3601.1,0.90712504]
[1732881291542,0.55,3602.1,3601.1,0.90712504]
[1732881291769,0.55,3602.1,3601.1,0.8303]
[1732881291991,0.46629635,3602.2,3601.1,0.8303]
[1732881291992,0.02774595,3602.2,3601.1,0.8303]
[1732881292939,0.02774595,3602.3,3601.1,0.8303]
[1732881295143,0.76467175,3601.9,3601.1,0.8303]
[1732881295377,0.55,3601.8,3601.1,0.8303]
[1732881295670,0.02774595,3601.7,3601.1,0.8303]
[1732881296544,3.02774595,3601.7,3601.1,0.8303]
[1732881296751,0.55,3601.6,3601.1,0.8303]
[1732881296954,3.03415801,3602.3,3601.1,0.8303]
[1732881297146,0.57774595,3602.2,3601.1,0.8303]
[1732881297530,0.02774595,3602.2,3601.1,0.8303]
[1732881298074,0.02774595,3602.4,3601.1,0.8303]
[1732881298266,0.55,3602.2,3601.1,0.8303]
[1732881298446,0.02774595,3602.1,3601.1,0.8303]
[1732881300594,0.55,3602.0,3601.1,0.8303]
[1732881300743,0.02774595,3601.9,3601.1,0.8303]
[1732881302177,3.55,3601.7,3601.1,0.8303]
[1732881302377,0.68893635,3601.6,3601.1,0.8303]
[1732881302780,0.57774595,3601.5,3601.1,0.8303]
[1732881302983,0.55,3601.5,3601.1,0.8303]
[1732881307872,0.55,3601.5,3601.1,0.82870089]
[1732881310683,0.57774595,3601.5,3601.1,0.82870089]
[1732881310882,0.42389363,3601.4,3601.1,0.82870089]
[1732881311481,2.77677,3601.3,3601.1,0.82870089]
[1732881311681,2.77677,3601.3,3601.2,0.07649258]
[1732881312722,2.80451595,3601.3,3601.2,0.07649258]
[1732881312932,2.77677,3601.3,3601.2,0.07649258]
[1732881313214,3.4956244,3601.3,3601.2,0.07649258]
[1732881316613,6.52337035,3601.3,3601.2,0.07649258]
[1732881316911,2.77692,3601.1,3601.0,0.7829]
[1732881317115,2.77692,3601.1,3601.0,0.85953185]
[1732881318008,2.77692,3601.1,3601.0,0.07663185]
[1732881318257,13.6703982,3601.1,3601.0,0.07663185]
[1732881318413,8.0393382,3601.1,3600.1,0.8129]
[1732881318755,1.5535182,3601.1,3600.1,0.8129]
[1732881319051,3.02774595,3601.3,3600.1,0.8129]
[1732881319908,3.0,3601.3,3600.1,0.8129]
[1732881320122,0.02774595,3601.2,3600.1,0.8129]
[1732881320326,0.55,3601.3,3600.1,0.8129]
[1732881320613,0.02774595,3601.2,3600.2,0.86917481]
[1732881320834,0.55,3601.3,3600.2,0.86917481]
[1732881321213,0.57774595,3601.3,3600.2,0.86917481]
[1732881321524,0.42389363,3601.4,3600.2,0.86917481]
[1732881321709,0.45163958,3601.4,3600.2,0.86917481]
[1732881323552,0.45163958,3601.4,3600.4,0.7722]
[1732881323753,5.77699,3601.1,3600.5,0.7809]
[1732881323955,2.80474595,3601.0,3600.5,0.85301682]
[1732881324312,2.777,3601.0,3600.6,0.7809]
[1732881324512,2.777,3601.0,3600.7,0.07199668]
[1732881324754,0.02774595,3600.9,3600.7,0.07199668]
[1732881325046,2.80483595,3600.9,3600.7,0.07199668]
[1732881325788,2.77716,3600.8,3600.7,0.07199668]
[1732881327690,0.855386,3601.0,3600.3,0.7692]
[1732881327995,2.77744,3600.5,3600.4,0.07216876]
[1732881328192,3.332909,3600.5,3600.4,0.07216876]
[1732881328376,2.77746,3600.4,3600.3,0.7692]
[1732881328686,2.77746,3600.4,3600.3,0.84142884]
[1732881328909,2.77746,3600.4,3600.3,0.7692]
[1732881330054,2.77779,3600.0,3599.5,0.7762]
[1732881330268,3.32746,3600.4,3600.3,0.07049454]
[1732881330495,1.5968027,3600.4,3599.5,0.7762]
[1732881330677,2.77787,3599.9,3599.5,0.7762]
[1732881330999,2.77775,3600.1,3599.5,0.7762]
[1732881331200,1.5968027,3600.4,3599.6,0.7735]
[1732881331358,2.77774,3600.1,3599.6,0.7735]
[1732881332073,2.77754,3600.3,3599.6,0.7735]
[1732881332388,2.77778,3600.0,3599.6,0.7735]
[1732881333400,0.55,3600.4,3599.6,0.7735]
[1732881333603,2.77767,3600.2,3599.6,0.7735]
[1732881334004,2.7777,3600.1,3599.6,3.55156]
[1732881334205,5.55535,3600.2,3599.6,3.55156]
[1732881334526,3.0,3600.6,3599.8,0.8211]
[1732881334820,2.80513595,3600.5,3599.8,0.8211]
[1732881335021,2.77747,3600.4,3599.9,0.8198]
[1732881335730,5.77733,3600.6,3599.9,0.8198]
[1732881335938,3.0,3600.8,3600.4,2.77746]
[1732881336089,2.77673,3601.4,3600.7,0.7559]
[1732881336429,2.80459595,3601.3,3600.8,0.0702023]
[1732881336726,2.77693,3601.1,3600.7,0.7559]
[1732881337064,2.77693,3601.1,3600.8,0.0702023]
[1732881337210,2.77703,3601.0,3600.8,0.0702023]
[1732881337414,2.77703,3601.0,3600.7,0.7559]
[1732881337735,2.77703,3601.0,3600.8,0.0702023]
[1732881337930,2.77705,3601.0,3600.7,0.7559]
[1732881338094,2.77705,3601.0,3600.8,0.0702023]
[1732881338315,2.77705,3601.0,3600.7,0.7559]
[1732881338517,2.77705,3601.0,3600.8,0.0702023]
[1732881338830,2.77705,3601.0,3600.7,0.7559]
[1732881339031,2.77705,3601.0,3600.9,0.07014224]
[1732881339237,2.77705,3601.0,3600.8,0.0702023]
[1732881339438,2.77705,3601.0,3600.9,0.0700923]
[1732881339751,2.77705,3601.0,3600.7,0.7559]
[1732881339908,2.77705,3601.0,3600.9,0.0700923]
[1732881340106,2.77669,3601.5,3600.9,2.77707]
[1732881340308,3.0,3601.4,3601.0,0.88912684]
[1732881341319,0.02774595,3601.3,3601.0,0.88912684]
[1732881341658,3.0,3601.4,3601.0,0.88912684]
[1732881341856,2.77669,3601.5,3601.0,0.88912684]
[1732881343166,2.80445595,3601.4,3601.0,0.88912684]
[1732881343373,2.77671,3601.4,3601.0,0.88912684]
[1732881344651,2.77685,3601.2,3601.0,0.88912684]
[1732881344978,2.80452595,3601.3,3601.0,0.88912684]
[1732881345144,2.77678,3601.3,3601.0,0.88912684]
[1732881345344,0.02774595,3601.2,3601.0,0.88912684]
[1732881345571,2.77692,3601.1,3601.0,0.88912684]
[1732881345735,2.77692,3601.1,3601.0,0.07002684]
[1732881346847,2.77678,3601.3,3601.0,0.07002684]
[1732881347553,2.77678,3601.3,3600.9,0.8056]
[1732881347962,2.77678,3601.3,3601.0,0.06993508]
[1732881348861,2.77684,3601.3,3601.0,0.06993508]
[1732881349062,3.33219,3601.3,3601.0,0.06993508]
[1732881349563,2.7769,3601.2,3601.0,0.06993508]
[1732881349785,3.33219,3601.3,3601.0,0.06993508]
[1732881350196,2.77687,3601.2,3601.0,0.06993508]
[1732881351192,0.02774595,3601.1,3601.0,0.06993508]
[1732881351769,2.80466595,3601.1,3601.0,0.06993508]
[1732881352657,3.39060559,3601.1,3600.9,0.8056]
[1732881352856,2.77714,3600.9,3600.5,0.7965]
[1732881353758,2.77716,3600.8,3600.5,0.7965]
[1732881354514,3.39063559,3601.1,3600.5,0.7965]
[1732881355002,2.77695,3601.1,3600.5,0.7965]
[1732881355403,2.77707,3601.0,3600.5,0.7965]
[1732881356195,2.77709,3600.9,3600.5,0.7965]
[1732881358030,2.77701,3601.0,3600.5,0.7965]
[1732881358311,2.77695,3601.1,3600.5,3.57388]
[1732881358460,2.77674,3601.4,3600.8,3.56631]
[1732881358665,3.3265,3601.7,3600.9,2.77706]
[1732881358905,5.77659,3601.6,3601.0,0.7892]
[1732881359088,2.77659,3601.6,3601.1,2.77692]
[1732881359422,3.0,3601.7,3601.2,0.06986356]
[1732881359707,0.02774595,3601.6,3601.3,0.7608]
[1732881359869,0.02774595,3601.6,3601.4,0.06974347]
[1732881360065,5.77648,3601.7,3601.4,0.06974347]
[1732881360298,2.80432595,3601.6,3601.4,0.06974347]
[1732881360794,0.02774595,3601.6,3601.5,0.8181]
[1732881361009,3.0,3601.7,3601.5,0.8181]
[1732881361306,3.02774595,3601.7,3601.5,0.88778343]
[1732881361508,2.77629,3602.0,3601.5,0.88778343]
[1732881361707,0.7749,3602.5,3601.5,0.88778343]
[1732881361708,2.77616,3602.1,3601.5,0.88778343]
[1732881361870,0.555225,3602.0,3601.5,3.66434343]
[1732881362070,2.77616,3602.1,3601.5,3.66434343]
[1732881362279,2.77602,3602.3,3601.6,2.77653]
[1732881362499,2.77602,3602.3,3601.9,0.8322]
[1732881362707,2.7758,3602.6,3602.0,0.06931852]
[1732881362888,2.7758,3602.6,3602.0,2.84551852]
[1732881363087,2.77585,3602.5,3602.0,0.06931852]
[1732881363496,2.77563,3602.8,3602.0,2.84553852]
[1732881363796,2.77586,3602.5,3602.0,2.84553852]
[1732881363996,2.77605,3602.3,3602.0,0.06931852]
[1732881364242,2.77612,3602.2,3602.0,0.06931852]
[1732881364607,2.80389595,3602.1,3602.0,0.06931852]
[1732881364799,3.3341516,3602.1,3602.0,0.06931852]
[1732881364997,2.77638,3601.9,3601.6,0.7952]
[1732881365199,2.7764,3601.8,3601.6,0.7952]
[1732881365396,2.7764,3601.8,3601.7,0.06949859]
[1732881366239,2.7766,3601.6,3601.4,0.8197]
[1732881366441,2.77662,3601.5,3601.4,0.8197]
[1732881367304,0.02774595,3601.6,3600.2,3.03406866]
[1732881367531,0.02774595,3601.6,3600.6,0.7913]
[1732881367532,2.7769,3601.2,3600.6,0.7913]
[1732881368049,2.77705,3601.0,3600.6,0.7913]
[1732881368217,2.77709,3600.9,3600.6,0.7913]
[1732881368400,2.77687,3601.2,3600.6,0.7913]
[1732881368799,2.77707,3601.0,3600.6,0.7913]
[1732881369044,2.77723,3600.7,3600.6,0.7913]
[1732881369241,2.77709,3600.9,3600.6,0.7913]
[1732881369441,2.77717,3600.8,3600.6,0.7913]
[1732881370007,2.77695,3601.1,3600.6,0.7913]
[1732881370247,2.77715,3600.9,3600.6,0.7913]
[1732881370555,2.77714,3600.9,3600.6,0.7913]
[1732881370738,2.777,3601.0,3600.6,0.7913]
[1732881370938,2.77713,3600.9,3600.6,0.7913]
[1732881371124,2.77721,3600.8,3600.6,0.7913]
[1732881371753,2.77723,3600.7,3600.6,0.7913]
[1732881372620,2.77721,3600.8,3600.1,0.8104]
[1732881372621,2.77733,3600.6,3600.1,0.8104]
[1732881373246,2.77721,3600.8,3600.1,0.8104]
[1732881373469,2.77739,3600.5,3600.1,0.8104]
[1732881374113,2.77733,3600.6,3600.1,0.8104]
[1732881374328,2.77733,3600.6,3600.2,0.07031306]
[1732881374510,0.555368,3601.1,3600.2,0.07031306]
[1732881374711,2.77717,3600.8,3600.2,2.84791306]
[1732881375113,2.77695,3601.1,3600.2,2.84791306]
[1732881375439,2.77669,3601.4,3600.2,2.84791306]
[1732881375440,2.77725,3600.7,3600.3,0.823]
[1732881375744,2.77717,3600.8,3600.4,0.0701929]
[1732881376114,2.77725,3600.7,3600.4,0.0701929]
[1732881378465,0.55,3601.3,3600.4,0.0701929]
[1732881378752,2.77728,3600.7,3600.4,0.0701929]
[1732881379657,2.77716,3600.8,3600.4,0.0701929]
[1732881382500,8.81050866,3601.8,3600.5,0.7889]
[1732881382501,2.77687,3601.2,3600.5,0.7889]
[1732881382655,2.77687,3601.2,3600.6,2.77726]
[1732881382840,2.77687,3601.2,3600.7,0.7984]
[1732881383041,2.77674,3601.4,3600.7,3.57563]
[1732881383242,2.77674,3601.4,3600.8,2.84722891]
[1732881383441,2.77678,3601.3,3600.8,2.84722891]
[1732881384536,2.77678,3601.3,3600.8,0.07008891]
[1732881384890,2.80452595,3601.3,3600.7,3.57563]
[1732881385181,2.77694,3601.1,3600.8,0.07008891]
[1732881385482,2.77694,3601.1,3600.7,0.7984]
[1732881385675,2.77678,3601.3,3600.9,0.06997353]
[1732881385982,3.35986795,3601.3,3601.0,0.06991752]
[1732881386346,3.35986795,3601.3,3600.7,0.7984]
[1732881386548,2.77678,3601.3,3600.8,0.07003763]
[1732881386861,2.77678,3601.3,3600.7,3.57563]
[1732881387071,2.77678,3601.3,3600.9,0.06997757]
[1732881387383,0.02774595,3601.2,3601.0,0.06991752]
[1732881387585,2.77678,3601.3,3601.0,0.06991752]
[1732881387879,5.77646,3601.8,3601.0,1.16954675]
[1732881388082,2.77624,3602.0,3601.2,0.805]
[1732881388283,2.77631,3601.9,3601.2,0.805]
[1732881388469,2.77631,3601.9,3601.4,0.805]
[1732881388874,2.77648,3601.7,3601.5,0.069535]
[1732881389188,0.11109311,3601.6,3601.5,0.069535]
[1732881389969,2.88763311,3601.6,3601.4,0.805]
[1732881390172,2.77654,3601.6,3601.4,0.805]
[1732881390368,0.11108246,3601.5,3601.4,0.805]
[1732881390596,2.88777246,3601.5,3600.7,0.781]
[1732881390756,0.11108246,3601.4,3600.7,0.658576]
[1732881390958,0.11108246,3601.3,3600.8,0.85695535]
[1732881391260,0.11108246,3601.4,3600.8,0.85695535]
[1732881391580,2.88785246,3601.3,3600.8,0.85695535]
[1732881391752,2.77677,3601.3,3600.8,0.85695535]
[1732881391959,2.77669,3601.5,3600.8,0.85695535]
[1732881391960,0.11108668,3601.2,3600.8,0.85695535]
[1732881392155,2.77684,3601.3,3600.8,0.85695535]
[1732881392394,0.11108582,3601.2,3600.8,0.85695535]
[1732881392699,0.11110531,3601.1,3600.8,0.85695535]
[1732881392993,0.11110416,3601.0,3600.8,0.85695535]
[1732881393151,0.11110416,3600.9,3600.8,0.85695535]
[1732881397062,2.88818416,3600.9,3600.8,0.85695535]
[1732881397272,3.45470658,3600.9,3600.8,0.06995535]
[1732881397474,2.77723,3600.7,3600.6,0.25]
[1732881397683,2.88833416,3600.7,3600.6,0.25]
[1732881399102,2.88842032,3600.7,3600.6,0.25]
[1732881400000,5.88842032,3600.7,3600.6,0.25]
[1732881400207,7.08933759,3600.7,3600.6,0.25]
[1732881404808,7.63933759,3600.7,3600.6,0.25]
[1732881405294,8.46463759,3600.7,3600.6,0.25]
[1732881410255,9.93278981,3600.7,3600.6,0.25]
[1732881412966,9.38278981,3600.7,3600.6,0.25]
[1732881413262,9.93278981,3600.7,3600.6,0.25]
[1732881414562,9.82159949,3600.7,3600.6,0.25]
[1732881414731,9.93250591,3600.7,3600.6,0.25]
[1732881418551,2.778,3599.7,3599.6,0.7727]
[1732881419532,2.88889561,3599.7,3599.6,0.7727]
[1732881420298,2.77836,3599.3,3598.9,0.7959]
[1732881420517,2.77836,3599.3,3599.0,0.7959]
[1732881420672,2.77819,3599.5,3599.0,0.86725682]
[1732881421326,2.77832,3599.3,3599.0,0.86725682]
[1732881421596,2.7784,3599.2,3599.0,0.86725682]
[1732881422103,2.77847,3599.1,3599.0,0.86725682]
[1732881422303,7.80230922,3599.1,3599.0,0.07135682]
[1732881422476,8.85895796,3599.1,3599.0,0.07135682]
[1732881422673,0.28844874,3599.1,3598.7,0.7647]
[1732881422890,0.11094375,3599.3,3599.0,1.46815222]
[1732881423059,0.801,3600.6,3598.7,2.80652474]
[1732881423060,0.11094375,3599.4,3599.2,2.77839]
[1732881423263,0.11094375,3599.8,3599.3,2.77831]
[1732881423590,0.11093183,3599.7,3599.4,0.8146]
[1732881423762,2.95532094,3600.0,3599.4,0.8146]
[1732881423763,2.88878183,3599.9,3599.4,0.8146]
[1732881423957,0.11093183,3599.8,3599.5,0.07105626]
[1732881424163,0.11093183,3599.7,3599.5,0.07105626]
[1732881424412,2.77783,3600.0,3599.5,0.07105626]
[1732881424704,0.11095507,3599.9,3599.8,2.77793]
[1732881424876,2.77717,3600.8,3600.1,2.77769]
[1732881425201,0.11095985,3600.7,3600.2,0.86450448]
[1732881425402,2.77721,3600.8,3600.2,0.86450448]
[1732881425607,4.24536222,3600.8,3600.2,0.86450448]
[1732881425899,1.29493039,3601.5,3600.2,1.50650793]
[1732881426112,4.24533222,3600.8,3600.2,1.50650793]
[1732881426279,2.77718,3600.8,3600.2,1.50650793]
[1732881426798,2.77709,3600.9,3600.2,1.50650793]
[1732881427006,2.77709,3600.9,3600.2,4.28410793]
[1732881427215,5.77705,3601.0,3600.3,0.70617979]
[1732881427515,3.0,3601.0,3600.4,0.07058433]
[1732881427810,2.77698,3601.1,3600.5,0.7858]
[1732881428015,3.0,3601.0,3600.5,0.7858]
[1732881428305,3.0,3601.0,3600.6,0.07046419]
[1732881428716,3.0,3601.0,3600.5,1.21979741]
[1732881428872,3.0,3601.0,3600.7,0.07040412]
[1732881429206,3.0,3601.0,3600.6,0.07046419]
[1732881429370,3.0,3601.0,3600.7,0.07040412]
[1732881429566,3.0,3601.0,3600.5,1.21979741]
[1732881430007,3.0,3601.0,3600.6,0.07046419]
[1732881430307,5.77688,3601.2,3600.5,1.21979741]